Cogmind - Beta 12 @@@ ROGUE MODE // 2023.09.22 @ 19:04:10 Player: Zirov Result: Self-destructed Performance ------------- Evolutions (2) 1000 Regions Visited (5) 1000 Robots Destroyed (16) 80 Value Destroyed (275) 275 Prototype IDs (26) 520 Alien Tech Used (0) 0 Bonus (300) 300 TOTAL SCORE: 3175 Bonus ------- Aligned with FarCom 300 Cogmind --------- Core Integrity 550/550 Matter 200/300 Energy 271/275 System Corruption 0% Temperature Cool (0) Movement Walking (120) Location -8/Materials Parts ------- > --- POWER (1) -------- Deuterium Engine > --- PROPULSION (4) --- Improved Aluminum Leg Improved Aluminum Leg Improved Aluminum Leg Improved Carbon-fiber Leg > --- UTILITY (4) ------ Heat Sink Large Storage Unit Sensor Array > --- WEAPON (2) ------- Shotgun Shotgun > --- INVENTORY (15) --- Ion Engine Light Nuclear Core Titanium Leg Medium Storage Unit Improved Terrain Scanner Cloak of Protection Decoy Drone Bay (10/16) Improved Medium Laser Improved Light Cannon Makeshift Hammer Peak State ------------ > --- POWER ------------ Deuterium Engine > --- PROPULSION ------- Improved Aluminum Leg Improved Aluminum Leg Improved Aluminum Leg Improved Carbon-fiber Leg > --- UTILITY ---------- Heat Sink Large Storage Unit Decoy Drone Bay > --- WEAPON ----------- Shotgun Shotgun > --- INVENTORY -------- Ion Engine Light Nuclear Core Titanium Leg Medium Storage Unit Sensor Array Improved Terrain Scanner Cloak of Protection Improved Medium Laser Improved Light Cannon Makeshift Hammer [Rating: 35] Favorites ----------- Power Ion Engine Engine Ion Engine Power Core Light Nuclear Core Propulsion Improved Aluminum Leg Leg Improved Aluminum Leg Wheel Wheel Utility Medium Storage Unit Device Sensor Array Storage Medium Storage Unit Weapon Shotgun Energy Gun Small Laser Ballistic Gun Shotgun Ballistic Cannon Light Cannon Build | -11 -10 -10 -10 -9 -8 ------- Run | Jun Mat Min Exi Min Mat Slots Evolved 4 | . . . . . 4 Power . | . . . . . . Propulsion 2 | . . . . . 2 Utility 2 | . . . . . 2 Weapon . | . . . . . . Parts Attached 37 | 7 20 . . 1 9 Power 6 | 1 3 . . . 2 Engine 5 | 1 3 . . . 1 Core 1 | . . . . . 1 Reactor . | . . . . . . Propulsion 9 | 2 4 . . 1 2 Treads . | . . . . . . Leg 5 | . 2 . . 1 2 Wheel 4 | 2 2 . . . . Hover . | . . . . . . Flight . | . . . . . . Utility 12 | 1 6 . . . 5 Device 8 | . 4 . . . 4 Storage 4 | 1 2 . . . 1 Processor . | . . . . . . Hackware . | . . . . . . Protection . | . . . . . . Artifact . | . . . . . . Weapon 10 | 3 7 . . . . Energy Gun 5 | 2 3 . . . . Energy Cannon . | . . . . . . Ballistic Gun 4 | 1 3 . . . . Ballistic Cannon 1 | . 1 . . . . Launcher . | . . . . . . Special Weapon . | . . . . . . Impact Weapon . | . . . . . . Slashing Weapon . | . . . . . . Piercing Weapon . | . . . . . . Special Melee Weapon . | . . . . . . Unidentified Prototypes 1 | . . . . . 1 Corrupted Parts 1 | . . . . 1 . System Corruption 4 | . . . . 4 . Parts Lost 4 | . 4 . . . . Power . | . . . . . . Propulsion 2 | . 2 . . . . Utility . | . . . . . . Weapon 2 | . 2 . . . . Highest Loss Streak 3 | . 3 . . . . To Critical Strikes . | . . . . . . Average Slot Usage (%) 97 | . 94 100 100 100 95 Engine 13 | . 13 14 14 14 4 Leg 18 | . 1 28 28 28 36 Wheel 10 | . 24 . . . . Device 13 | . 10 14 14 14 22 Storage 13 | . 14 14 14 14 9 Energy Gun 5 | . 12 . . . . Ballistic Gun 19 | . 8 28 28 28 18 Ballistic Cannon 2 | . 6 . . . . Naked Turns . | . . . . . . Heaviest Build 38 | 11 30 22 22 22 38 Greatest Support 57 | 26 26 26 26 31 57 Greatest Overweight (x) 1 | . 1 . . . . Average Overweight (x) . | . . . . . . Largest Inventory Capacity 15 | 8 15 10 10 10 15 Average Capacity 9 | 7 9 10 10 10 14 Most Carried 12 | 1 10 10 10 10 12 Average Carried 8 | . 6 9 9 10 8 Final Capacity 15 | 8 10 10 10 10 15 Final Carried 11 | 1 9 10 10 10 11 Class Distribution -------------------- 92% | Mutant 7% | Skirmisher Dominant Class ---------------- Mutant | -10/Materials Mutant | -10/Mines Mutant | -10/Exiles Skirmisher | -9/Mines Skirmisher | -8/Materials Resources | -11 -10 -10 -10 -9 -8 ----------- Run | Jun Mat Min Exi Min Mat Matter Collected 558 | 230 229 99 . . . Remotely . | . . . . . . Salvage Created 498 | . 405 93 . . . Parts 39 | . 35 4 . . . Haulers Intercepted . | . . . . . . Recyclers Shooed 3 | . 3 . . . . Parts Field Recycled . | . . . . . . Retrieved Matter . | . . . . . . Parts Self-Destructed . | . . . . . . Prevented . | . . . . . . Kills | -11 -10 -10 -10 -9 -8 ------- Run | Jun Mat Min Exi Min Mat Combat Hostiles Destroyed 10 | . 8 2 . . . Guns 10 | . 8 2 . . . Classes Destroyed 5 | . 5 . . . . Builder 3 | . 3 . . . . Recycler 2 | . 2 . . . . Watcher 1 | . 1 . . . . Swarmer 6 | . 6 . . . . Grunt 4 | . 2 2 . . . Best Kill Streak 5 | . 5 2 . . . Combat Bots Only 3 | . 3 2 . . . Max Kills in Single Turn 1 | . 1 1 . . . Gunslinging . | . . . . . . Exploded . | . . . . . . Melee . | . . . . . . Uniques/NPCs Destroyed . | . . . . . . Combat | -11 -10 -10 -10 -9 -8 -------- Run | Jun Mat Min Exi Min Mat Damage Taken 427 | . 411 16 . . . Core 102 | . 102 . . . . Absorbed by Shields . | . . . . . . Core Remaining (%) 79 | 100 . . . 59 . Volleys Fired 48 | . 45 3 . . . Largest 2 | . 2 2 . . . Hottest 75 | . 75 46 . . . Shots Fired 95 | . 89 6 . . . Gun 82 | . 76 6 . . . Cannon 13 | . 13 . . . . Launcher . | . . . . . . Special . | . . . . . . Kinetic 51 | . 45 6 . . . Thermal 19 | . 19 . . . . Explosive . | . . . . . . Electromagnetic 25 | . 25 . . . . Robot Hit Streak 11 | . 11 3 . . . Robot Miss Streak 8 | . 7 8 . . . Penetration Max . | . . . . . . Secondary Targets 1 | . 1 . . . . Max Gunslinging Chain 1 | . 1 . . . . Shots Hit Robots 49 | . 44 5 . . . Core Hits 27 | . 22 5 . . . Critical Kills 1 | . . 1 . . . Critical Parts Destroyed . | . . . . . . Critical Strikes 1 | . . 1 . . . Destroy 1 | . . 1 . . . Melee Attacks . | . . . . . . Impact . | . . . . . . Slashing . | . . . . . . Piercing . | . . . . . . Sneak Attacks . | . . . . . . Combat Hostiles . | . . . . . . Follow-up Attacks . | . . . . . . Damage Inflicted 598 | . 541 57 . . . Guns 458 | . 401 57 . . . Cannons 68 | . 68 . . . . Explosions 72 | . 72 . . . . Melee . | . . . . . . Ramming . | . . . . . . Kinetic 266 | . 209 57 . . . Thermal 192 | . 192 . . . . Explosive . | . . . . . . Electromagnetic 140 | . 140 . . . . Impact . | . . . . . . Slashing . | . . . . . . Piercing . | . . . . . . Highest Corruption 4 | . . . . 4 . Average Corruption 4 | . . . . 4 . Corruption Purged . | . . . . . . Corruption Blocked . | . . . . . . Effects 1 | . . . . 1 . Energy Discharges 1 | . . . . 1 . Overload Shots . | . . . . . . Overflow Damage 18 | . 18 . . . . Projectiles 7 | . 7 . . . . Explosions 11 | . 11 . . . . Melee . | . . . . . . Knockbacks . | . . . . . . Impact . | . . . . . . Kinetic . | . . . . . . Secondary . | . . . . . . Self-Inflicted Damage 29 | . 29 . . . . Shots 1 | . 1 . . . . Rammed . | . . . . . . Targets Rammed . | . . . . . . Kicked . | . . . . . . Crushed . | . . . . . . Highest Temperature 60 | . 60 4 . . . Average Temperature 23 | . 23 4 . . . Received Heat Transfer 96 | . 87 9 . . . Siege Activations . | . . . . . . Robots Corrupted . | . . . . . . Combat Hostiles . | . . . . . . Parts Fried 1 | . 1 . . . . Impact Corruptions . | . . . . . . Robots Melted . | . . . . . . Combat Hostiles . | . . . . . . Parts Melted . | . . . . . . Heat Transferred 375 | . 375 . . . . Parts Sabotaged . | . . . . . . Parts Stolen . | . . . . . . Parts Stripped . | . . . . . . Power Chain Reactions 1 | . 1 . . . . Missiles Intercepted . | . . . . . . Alert | -11 -10 -10 -10 -9 -8 ------- Run | Jun Mat Min Exi Min Mat Peak Influence 206 | . 206 33 . . . Initial 13 | . . 13 . . . Average 42 | . 73 18 . . . Maximum Alert Level 1 | . 1 . . . . Low Security (%) 99 | 100 99 100 . 100 100 Level 1 . | . . . . . . Level 2 . | . . . . . . Level 3 . | . . . . . . Level 4 . | . . . . . . Level 5 . | . . . . . . High Security . | . . . . . . Max Security . | . . . . . . Squads Dispatched . | . . . . . . Investigation . | . . . . . . Extermination . | . . . . . . Reinforcement . | . . . . . . Assault . | . . . . . . Garrison . | . . . . . . Intercept . | . . . . . . Searches Triggered . | . . . . . . Construction Impeded . | . . . . . . Haulers Reinforced . | . . . . . . Active Scanning Responses . | . . . . . . Cargo Convoy Interrupts . | . . . . . . Stealth | -11 -10 -10 -10 -9 -8 --------- Run | Jun Mat Min Exi Min Mat Distress Signals 1 | . . . . . 1 Communications Jammed . | . . . . . . Distress Signals . | . . . . . . Times Spotted 20 | . 18 2 . . . Peak Tracking Total 3 | . 3 2 . . . Tactical Retreats 1 | . 1 . . . . Traps | -11 -10 -10 -10 -9 -8 ------- Run | Jun Mat Min Exi Min Mat Traps Triggered 1 | . 1 . . . . Indirectly . | . . . . . . Trap Hack Attempts . | . . . . . . Triggered . | . . . . . . Disarmed . | . . . . . . Reprogrammed . | . . . . . . Reused . | . . . . . . Traps Extracted . | . . . . . . Installed . | . . . . . . Triggered . | . . . . . . Machines | -11 -10 -10 -10 -9 -8 ---------- Run | Jun Mat Min Exi Min Mat Machines Disabled 1 | . 1 . . . . Max in Single Turn 1 | . 1 . . . . Machines Repaired . | . . . . . . Machines Sabotaged . | . . . . . . Overloaded Fab Kills . | . . . . . . Hacking | -11 -10 -10 -10 -9 -8 --------- Run | Jun Mat Min Exi Min Mat Machines Accessed 13 | . 8 1 1 2 1 Terminals 10 | . 8 . . 1 1 Fabricators . | . . . . . . Repair Stations . | . . . . . . Recycling Units . | . . . . . . Scanalyzers . | . . . . . . Garrison Access . | . . . . . . Total Hacks 30 | . 22 1 1 4 2 Successful 11 | . 7 1 1 2 . Failed 19 | . 15 . . 2 2 Catastrophic 1 | . . . . . 1 Database Lockouts . | . . . . . . Manual 15 | . 12 . 1 . 2 Terminals 27 | . 22 . . 3 2 Fabricators . | . . . . . . Repair Stations . | . . . . . . Recycling Units . | . . . . . . Scanalyzers . | . . . . . . Garrison Access . | . . . . . . Terminal Hacks 9 | . 5 1 1 2 . Prototype ID Bank 1 | . 1 . . . . Open Door 2 | . . 1 . 1 . Terminal Index 1 | . 1 . . . . Locate Traps 1 | . 1 . . . . Hauler Manifests 1 | . 1 . . . . Registered Components 1 | . 1 . . . . Zone Layout 1 | . . . . 1 . EX-Prototype ID Bank 1 | . . . 1 . . Fabricator Hacks . | . . . . . . Repair Station Hacks . | . . . . . . Recycling Unit Hacks . | . . . . . . Scanalyzer . | . . . . . . Garrison Access Hacks . | . . . . . . Unauthorized Hacks 2 | . 2 . . . . Terminals 2 | . 2 . . . . Botnet 2 | . 2 . . . . Fabricators . | . . . . . . Repair Stations . | . . . . . . Recycling Units . | . . . . . . Scanalyzers . | . . . . . . Garrison Access . | . . . . . . Data Cores Recovered . | . . . . . . Used . | . . . . . . Hacking Detections 9 | . 7 . . 1 1 Full Trace Events . | . . . . . . Feedback Events . | . . . . . . Feedback Blocked . | . . . . . . Robot Schematics Acquired . | . . . . . . Robots Built . | . . . . . . Authchips . | . . . . . . Time . | . . . . . . Total Robot Build Rating . | . . . . . . Part Schematics Acquired . | . . . . . . Parts Built . | . . . . . . Authchips . | . . . . . . Time . | . . . . . . Total Part Build Rating . | . . . . . . Parts Repaired . | . . . . . . Time . | . . . . . . Parts Recycled . | . . . . . . Recycled Matter . | . . . . . . Retrieved Matter . | . . . . . . Retrieved Components . | . . . . . . Parts Scanalyzed . | . . . . . . Part Schematics Acquired . | . . . . . . Parts Damaged . | . . . . . . Bothacking | -11 -10 -10 -10 -9 -8 ------------ Run | Jun Mat Min Exi Min Mat Used RIF Installer . | . . . . . . Robots Hacked . | . . . . . . Non-combat . | . . . . . . Combat . | . . . . . . Robot Hacks Applied . | . . . . . . Relay Couplers Released . | . . . . . . Fabnet Peak Effective % . | . . . . . . Robots Rewired . | . . . . . . Allies Hacked . | . . . . . . Hacks Repelled . | . . . . . . Allies | -11 -10 -10 -10 -9 -8 -------- Run | Jun Mat Min Exi Min Mat Total Allies . | . . . . . . Largest Group . | . . . . . . Highest-Rated Group . | . . . . . . Highest-Rated Ally . | . . . . . . Total Orders 1 | . . . . . 1 EXPLORE 1 | . . . . . 1 Ally Attacks . | . . . . . . Total Damage . | . . . . . . Kills . | . . . . . . Allies Corrupted . | . . . . . . Allies Melted . | . . . . . . Intel | -11 -10 -10 -10 -9 -8 ------- Run | Jun Mat Min Exi Min Mat Robot Analysis Total . | . . . . . . Derelict Logs Recovered 1 | . . 1 . . . Drone Launches 6 | . . . . . 6 Drone Recoveries . | . . . . . . Exploration | -11 -10 -10 -10 -9 -8 ------------- Run | Jun Mat Min Exi Min Mat Turns Passed 2867 | 45 1142 902 510 48 220 Spaces Moved 2123 | 39 859 689 421 31 84 Core 3 | 3 . . . . . Treads . | . . . . . . Legs 1291 | . 66 689 421 31 84 Wheels 829 | 36 793 . . . . Hover . | . . . . . . Flight . | . . . . . . Fastest Speed 50 | 50 90 120 120 120 120 Average Speed 108 | 86 92 120 120 120 120 Slowest Speed 120 | 90 120 120 120 120 120 Overloaded Moves . | . . . . . . Propulsion Burnouts . | . . . . . . Robots Hopped . | . . . . . . Cave-ins Triggered . | . . . . . . Exploration Rate (%) 54 | 3 99 97 90 8 29 Regions Visited 5 Branch Regions 3 Pre-discovered Areas 2 | . . 2 . . . Known Exits Taken . | . . . . . . Unknown Exits Taken 5 | 1 1 1 1 1 . Scrap Searched 3 | . . 3 . . . Spaces Dug . | . . . . . . Terrain Destroyed 2 | . 2 . . . . Melee . | . . . . . . Projectile . | . . . . . . AOE 2 | . 2 . . . . Terrain Rammed . | . . . . . . Walls Destroyed . | . . . . . . Machines Disabled . | . . . . . . Actions | -11 -10 -10 -10 -9 -8 --------- Run | Jun Mat Min Exi Min Mat Total 2596 | 46 1120 760 426 42 202 Wait 349 | . 168 63 4 10 104 Move 2118 | 38 858 688 420 30 84 Hop . | . . . . . . Pick Up 24 | 1 17 3 1 . 2 Fast Attach 15 | 6 7 . . 1 1 Attach 10 | . 5 . . . 5 Detach 3 | . . . . . 3 Swap 12 | 1 8 . . . 3 Drop 17 | . 12 3 1 1 . Fire 48 | . 45 3 . . . Melee . | . . . . . . Ram . | . . . . . . Kick . | . . . . . . Crush . | . . . . . . Escape Stasis . | . . . . . . Rewire . | . . . . . . Trap . | . . . . . . Miscellaneous . | . . . . . . Route ------- -11/Junkyard -10/Materials (discovered 5 exits: [*Mat x3] / *Min x2) -10/Mines (discovered 3 exits: [*Mat x2] / *Exi) -10/Exiles (discovered 2 exits: *Min x2) -9/Mines -8/Materials History --------- Turn | Location | Event 19 | -11/Junkyard | Discovered new exit (range 16) 46 | -11/Junkyard | Entered Materials 137 | -10/Materials | Discovered new exit (range 13) 300 | -10/Materials | Discovered new exit (range 16) 337 | -10/Materials | Build established: Mutant 561 | -10/Materials | Lost 3 parts (1n2w) 720 | -10/Materials | Discovered new exit (range 16) 824 | -10/Materials | Discovered new exit (range 5) 1078 | -10/Materials | Discovered new exit (range 16) 1188 | -10/Materials | Entered Mines 1189 | -10/Mines | Learned location of Storage (-7) 1368 | -10/Mines | Deemed a non-threat by the Exiles lab entrance 1370 | -10/Mines | Discovered new exit (range 5) 1434 | -10/Mines | A weapon hastily lodged in a ceiling crevice suddenly fell to the ground 1451 | -10/Mines | Learned location of Zion (-6) 1569 | -10/Mines | Discovered new exit (range 9) 1690 | -10/Mines | Discovered new exit (range 11) 1855 | -10/Mines | Found the Drone Emporium 1862 | -10/Mines | Found Prototype Device 2090 | -10/Mines | Entered Exiles 2110 | -10/Exiles | Discovered new exit (range 14) 2140 | -10/Exiles | Met 8R-AWN 2160 | -10/Exiles | Met EX-HEX 2200 | -10/Exiles | Met EX-BIN 2215 | -10/Exiles | Aligned with FarCom system 2216 | -10/Exiles | Given EX-Vault access code 2243 | -10/Exiles | Opened EX-Vault 2254 | -10/Exiles | Found Cloak of Protection 2281 | -10/Exiles | Warned to stay clear of 0b10 Research branches 2317 | -10/Exiles | Met EX-DEC 2368 | -10/Exiles | Visited The Gauntlet 2582 | -10/Exiles | Discovered new exit (range 14) 2600 | -10/Exiles | Left Exiles lab with Cloak of Protection 2600 | -10/Exiles | Entered Mines 2602 | -9/Mines | Discovered new exit (range 14) 2626 | -9/Mines | Met a Derelict who couldn't figure out how to use a Trap Extractor 2648 | -9/Mines | Entered Materials 2648 | -8/Materials | Evolved 4 slots: Propulsion x2, Utility x2 2837 | -8/Materials | Identified Decoy Drone Bay 2868 | -8/Materials | Self-destructed Last Messages --------------- 02715_ Current location identified: Materials 02820_ Acquired Titanium Leg. 02829_ Connecting with Recycling Unit... 02837_ Identified Decoy Drone Bay. 02839_ Decoy Drone released from Decoy Drone Bay. [Achievement: Release The Drones!] 02860_ Decoy Drone self-destructs. 02860_ Decoy Drone destroyed. 02861_ Decoy Drone self-destructs. 02861_ Decoy Drone destroyed. 02861_ K-01 Serf collects debris. 02862_ Decoy Drone self-destructs. 02862_ Decoy Drone destroyed. 02863_ Decoy Drone self-destructs. 02863_ Decoy Drone destroyed. 02863_ W-25 Informer sends out distress signal. 02864_ Decoy Drone self-destructs. 02864_ Decoy Drone destroyed. 02865_ Decoy Drone self-destructs. 02865_ Decoy Drone destroyed. Map ----- +----------------------------------------------------+ | | | | | | | | | | | | | | | | | | | | | | | | | | | | | | | | | | | | | | | | | ????????????????#???????????????????????????????? | | ??????????????????#???#??#??????????????????????? | | ????????????????????????????????????????????????? | | ??????###################???????????????????????? | | ??????# # ###############?######### | | ??????# """"" #"" """ @ | | ??????# """"" #"Y """g#### ################# | | ??????# """"" #"" """ ##?# ## # #?# | | ??????# """"" # #### ## # #?# | | ??????# """"" # """ /? + #?# | | ??????# """"" # """ ########## # #?# | | ??????# """"" # """ #????????# # #?# | | ??????# # #???###??### ### #?# | | ??????########+######?### #????# #?########?# | | ??????????# ? #????# ##### #### | | ?????????## ##???# = | | ????#?????# #????####### #### | | ??????????####+########## #?????????###+###?? | | ??????#??## ##???# ##?????????# #?? | | ??????????# """"" #???#? #???? ?????# !!! ### | | ??????????# ""T"" #?????? # ?????????# !!! # | | ????#???#?# #??????? +??????????# !!! # | | ??????????# || #?? ???? #?????????? # " | | ??????????# || #??? ?? ??? ?? ????## # " | | ??????????# |! ##??? ??????????????#= # " | | ??????????# #??? ????? ?????????####### | | ?????????############?? ???????????????????????## | | ????#?#???????????????? ????????#???????????????# | | ???????#?????????????????????#??????????????????# | | ??????????????#?????????#???????????????????????# | +----------------------------------------------------+ Best States ------------- Heat Dissipation 41 Energy Generation 14 Energy Capacity 275 Matter Stores 300 Matter Capacity 300 Sight Range 16 Robot Scan Range 14 Terrain Scan Range 16 Terrain Scan Density 10 Evasion (%) 55 Item Schematics ----------------- None Robot Schematics ------------------ None Fabricated ------------ Nothing Alien Tech Used ----------------- None Achievements -------------- Release The Drones! Challenges ------------ None Game ------ Seed ClaymoresImpactTerrabomb Manual? 0 Play Time 00:28:42 Cumulative 94.3 hours Start 2023.09.21 @ 23:18:10 End 2023.09.22 @ 19:04:10 Sessions 3 Manual Loads 0 Difficulty Rogue Special Mode None Game No. 101 Rogue 101 Adventurer 0 Explorer 0 Win Type - Total 0 Types 0/0/0/0/0/0/0/0/0 Lore% 36 Gallery% 39 Achievement% 31 Wizard Run 0 Options --------- ASCII 1 Keyboard 1 Movement Numpad Keybinds 0 Fullscreen 1 Font 18/SmallcapsGlow Map View 76x50 Tactical HUD 1 Map Filters NONE Filters NONE Steam 1 RUN: 319652df-271c-4d58-8db2-f41e64b2ade0